Cogmind - Beta 12 @@@ ROGUE MODE // 2023.10.29 @ 13:51:21 Player: gallo Result: Destroyed by S-10 Pest with Light Assault Rifle Performance ------------- Evolutions (0) 0 Regions Visited (1) 200 Robots Destroyed (3) 15 Value Destroyed (135) 135 Prototype IDs (0) 0 Alien Tech Used (0) 0 Bonus (0) 0 TOTAL SCORE: 350 Bonus ------- None Cogmind --------- Core Integrity 0/250 Matter 241/300 Energy 100/100 System Corruption 0% Temperature Cool (4) Movement Core (200) Ox3 Location -10/Materials Parts ------- > --- POWER (1) -------- (None) > --- PROPULSION (2) --- (None) > --- UTILITY (2) ------ Medium Storage Unit > --- WEAPON (2) ------- (None) > --- INVENTORY (10) --- Ion Engine Light Ion Engine Light Ion Engine Small Storage Unit High-capacity Matter Pod (0) Peak State ------------ > --- POWER ------------ Ion Engine > --- PROPULSION ------- Aluminum Leg Aluminum Leg > --- UTILITY ---------- Small Storage Unit Medium Storage Unit > --- WEAPON ----------- Light Assault Rifle Light Assault Rifle > --- INVENTORY -------- Ion Engine [Rating: 7] Favorites ----------- Power Ion Engine Engine Ion Engine Propulsion Aluminum Leg Leg Aluminum Leg Utility Medium Storage Unit Storage Medium Storage Unit Weapon Light Assault Rifle Energy Gun Small Laser Ballistic Gun Light Assault Rifle Build | -11 -10 ------- Run | Jun Mat Slots Evolved . | . . Power . | . . Propulsion . | . . Utility . | . . Weapon . | . . Parts Attached 13 | 6 7 Power 2 | 1 1 Engine 2 | 1 1 Core . | . . Reactor . | . . Propulsion 4 | 2 2 Treads . | . . Leg 4 | 2 2 Wheel . | . . Hover . | . . Flight . | . . Utility 2 | 1 1 Device . | . . Storage 2 | 1 1 Processor . | . . Hackware . | . . Protection . | . . Artifact . | . . Weapon 5 | 2 3 Energy Gun 1 | . 1 Energy Cannon . | . . Ballistic Gun 4 | 2 2 Ballistic Cannon . | . . Launcher . | . . Special Weapon . | . . Impact Weapon . | . . Slashing Weapon . | . . Piercing Weapon . | . . Special Melee Weapon . | . . Unidentified Prototypes . | . . Parts Lost 5 | . 5 Power 1 | . 1 Propulsion 1 | . 1 Utility . | . . Weapon 3 | . 3 Highest Loss Streak 5 | . 5 To Critical Strikes . | . . Average Slot Usage (%) 65 | . 65 Engine 7 | . 7 Leg 17 | . 17 Storage 14 | . 14 Energy Gun 1 | . 1 Ballistic Gun 24 | . 24 Naked Turns . | . . Heaviest Build 17 | 12 17 Greatest Support 20 | 20 20 Greatest Overweight (x) 4 | . 4 Average Overweight (x) . | . . Largest Inventory Capacity 10 | 8 10 Average Capacity 9 | 7 9 Most Carried 6 | 1 6 Average Carried 2 | . 2 Final Capacity 10 | 8 10 Final Carried 5 | 1 5 Class Distribution -------------------- 100% | Mutant Dominant Class ---------------- Mutant | -10/Materials Resources | -11 -10 ----------- Run | Jun Mat Matter Collected 285 | 242 43 Remotely . | . . Salvage Created 111 | . 111 Parts 8 | . 8 Haulers Intercepted . | . . Recyclers Shooed . | . . Parts Field Recycled . | . . Retrieved Matter . | . . Parts Self-Destructed . | . . Prevented . | . . Kills | -11 -10 ------- Run | Jun Mat Combat Hostiles Destroyed 3 | . 3 Guns 2 | . 2 AOE 1 | . 1 Classes Destroyed 1 | . 1 Grunt 3 | . 3 Best Kill Streak 2 | . 2 Combat Bots Only 2 | . 2 Max Kills in Single Turn 1 | . 1 Gunslinging . | . . Exploded 1 | . 1 Melee . | . . Uniques/NPCs Destroyed . | . . Combat | -11 -10 -------- Run | Jun Mat Damage Taken 738 | . 738 Core 251 | . 251 Absorbed by Shields . | . . Core Remaining (%) 100 | 100 . Volleys Fired 29 | . 29 Largest 2 | . 2 Hottest 40 | . 40 Shots Fired 44 | . 44 Gun 44 | . 44 Cannon . | . . Launcher . | . . Special . | . . Kinetic 39 | . 39 Thermal 5 | . 5 Explosive . | . . Electromagnetic . | . . Robot Hit Streak 6 | . 6 Robot Miss Streak 4 | . 4 Penetration Max . | . . Secondary Targets 1 | . 1 Max Gunslinging Chain 1 | . 1 Shots Hit Robots 26 | . 26 Core Hits 11 | . 11 Critical Kills 1 | . 1 Critical Parts Destroyed . | . . Critical Strikes 1 | . 1 Destroy 1 | . 1 Melee Attacks . | . . Impact . | . . Slashing . | . . Piercing . | . . Sneak Attacks . | . . Combat Hostiles . | . . Follow-up Attacks . | . . Damage Inflicted 399 | . 399 Guns 197 | . 197 Cannons . | . . Explosions 202 | . 202 Melee . | . . Ramming . | . . Kinetic 176 | . 176 Thermal 223 | . 223 Explosive . | . . Electromagnetic . | . . Impact . | . . Slashing . | . . Piercing . | . . Highest Corruption . | . . Average Corruption . | . . Corruption Purged . | . . Corruption Blocked . | . . Overload Shots . | . . Overflow Damage 105 | . 105 Projectiles . | . . Explosions 105 | . 105 Melee . | . . Knockbacks . | . . Impact . | . . Kinetic . | . . Secondary . | . . Self-Inflicted Damage 68 | . 68 Shots 1 | . 1 Rammed . | . . Targets Rammed . | . . Kicked . | . . Crushed . | . . Highest Temperature 34 | . 34 Average Temperature 11 | . 11 Received Heat Transfer 333 | . 333 Siege Activations . | . . Robots Corrupted . | . . Combat Hostiles . | . . Parts Fried . | . . Impact Corruptions . | . . Robots Melted . | . . Combat Hostiles . | . . Parts Melted . | . . Heat Transferred 150 | . 150 Parts Sabotaged . | . . Parts Stolen . | . . Parts Stripped . | . . Power Chain Reactions . | . . Missiles Intercepted . | . . Alert | -11 -10 ------- Run | Jun Mat Peak Influence 93 | . 93 Initial . | . . Average 36 | . 49 Maximum Alert Level . | . . Low Security (%) 100 | 100 100 Level 1 . | . . Level 2 . | . . Level 3 . | . . Level 4 . | . . Level 5 . | . . High Security . | . . Max Security . | . . Squads Dispatched . | . . Investigation . | . . Extermination . | . . Reinforcement . | . . Assault . | . . Garrison . | . . Intercept . | . . Searches Triggered . | . . Construction Impeded . | . . Haulers Reinforced . | . . Active Scanning Responses . | . . Cargo Convoy Interrupts . | . . Stealth | -11 -10 --------- Run | Jun Mat Distress Signals . | . . Communications Jammed . | . . Distress Signals . | . . Times Spotted 8 | . 8 Peak Tracking Total 4 | . 4 Tactical Retreats . | . . Traps | -11 -10 ------- Run | Jun Mat Traps Triggered 3 | . 3 Indirectly . | . . Trap Hack Attempts . | . . Triggered . | . . Disarmed . | . . Reprogrammed . | . . Reused . | . . Traps Extracted . | . . Installed . | . . Triggered . | . . Machines | -11 -10 ---------- Run | Jun Mat Machines Disabled 2 | . 2 Max in Single Turn 1 | . 1 Machines Repaired . | . . Machines Sabotaged . | . . Overloaded Fab Kills . | . . Hacking | -11 -10 --------- Run | Jun Mat Machines Accessed . | . . Terminals . | . . Fabricators . | . . Repair Stations . | . . Recycling Units . | . . Scanalyzers . | . . Garrison Access . | . . Total Hacks . | . . Successful . | . . Failed . | . . Catastrophic . | . . Database Lockouts . | . . Manual . | . . Terminals . | . . Fabricators . | . . Repair Stations . | . . Recycling Units . | . . Scanalyzers . | . . Garrison Access . | . . Terminal Hacks . | . . Fabricator Hacks . | . . Repair Station Hacks . | . . Recycling Unit Hacks . | . . Scanalyzer . | . . Garrison Access Hacks . | . . Unauthorized Hacks . | . . Terminals . | . . Fabricators . | . . Repair Stations . | . . Recycling Units . | . . Scanalyzers . | . . Garrison Access . | . . Data Cores Recovered . | . . Used . | . . Hacking Detections . | . . Full Trace Events . | . . Feedback Events . | . . Feedback Blocked . | . . Robot Schematics Acquired . | . . Robots Built . | . . Authchips . | . . Time . | . . Total Robot Build Rating . | . . Part Schematics Acquired . | . . Parts Built . | . . Authchips . | . . Time . | . . Total Part Build Rating . | . . Parts Repaired . | . . Time . | . . Parts Recycled . | . . Recycled Matter . | . . Retrieved Matter . | . . Retrieved Components . | . . Parts Scanalyzed . | . . Part Schematics Acquired . | . . Parts Damaged . | . . Bothacking | -11 -10 ------------ Run | Jun Mat Used RIF Installer . | . . Robots Hacked . | . . Non-combat . | . . Combat . | . . Robot Hacks Applied . | . . Relay Couplers Released . | . . Fabnet Peak Effective % . | . . Robots Rewired . | . . Allies Hacked . | . . Hacks Repelled . | . . Allies | -11 -10 -------- Run | Jun Mat Total Allies . | . . Largest Group . | . . Highest-Rated Group . | . . Highest-Rated Ally . | . . Total Orders . | . . Ally Attacks . | . . Total Damage . | . . Kills . | . . Allies Corrupted . | . . Allies Melted . | . . Intel | -11 -10 ------- Run | Jun Mat Robot Analysis Total . | . . Derelict Logs Recovered . | . . Drone Launches . | . . Drone Recoveries . | . . Exploration | -11 -10 ------------- Run | Jun Mat Turns Passed 350 | 88 262 Spaces Moved 183 | 71 112 Core 13 | 9 4 Treads . | . . Legs 170 | 62 108 Wheels . | . . Hover . | . . Flight . | . . Fastest Speed 50 | 50 120 Average Speed 142 | 111 161 Slowest Speed 250 | 120 250 Overloaded Moves . | . . Propulsion Burnouts . | . . Robots Hopped . | . . Cave-ins Triggered . | . . Exploration Rate (%) 13 | 4 23 Regions Visited 1 Branch Regions . Pre-discovered Areas . | . . Known Exits Taken . | . . Unknown Exits Taken 1 | 1 . Scrap Searched . | . . Spaces Dug . | . . Terrain Destroyed 22 | . 22 Melee . | . . Projectile . | . . AOE 22 | . 22 Terrain Rammed . | . . Walls Destroyed . | . . Machines Disabled . | . . Actions | -11 -10 --------- Run | Jun Mat Total 231 | 77 154 Wait . | . . Move 182 | 70 112 Hop . | . . Pick Up 6 | 1 5 Fast Attach 11 | 6 5 Attach 2 | . 2 Detach 1 | . 1 Swap . | . . Drop . | . . Fire 29 | . 29 Melee . | . . Ram . | . . Kick . | . . Crush . | . . Escape Stasis . | . . Rewire . | . . Trap . | . . Miscellaneous . | . . Route ------- -11/Junkyard -10/Materials History --------- Turn | Location | Event 54 | -11/Junkyard | Discovered new exit (range 15) 89 | -11/Junkyard | Entered Materials 314 | -10/Materials | Build established: Mutant 315 | -10/Materials | Core integrity fell below 50% 344 | -10/Materials | Core integrity fell below 20% 351 | -10/Materials | Destroyed by S-10 Pest with Light Assault Rifle Last Messages --------------- 00205_ U-05 Engineer lays Concrete. 00247_ Acquired Hcp. Matter Pod. 00267_ Acquired Lgt. Ion Engine. 00290_ Critical hit (Burn: +37). 00312_ Lgt. Assault Rifle destroyed. 00331_ Aluminum Leg destroyed. 00336_ Fusion Modulator explodes. 00336_ Destroyed Aluminum Leg. 00336_ Lgt. Assault Rifle destroyed. 00336_ Destroyed Lgt. Assault Rifle. 00336_ Destroyed Ion Engine. 00336_ G-34 Mercenary destroyed. 00337_ Lgt. Ion Engine destroyed. 00339_ U-05 Engineer lays Concrete. 00339_ Acquired Sml. Laser. 00341_ U-05 Engineer builds a Wall. 00342_ U-05 Engineer builds a Door. 00343_ K-01 Serf collects debris. 00350_ U-05 Engineer lays Concrete. 00351_ Sml. Laser destroyed. Map ----- +----------------------------------------------------+ | ??????????????????????????????????????????? | | ??????????????????????????????????????????? | | ??????????????????????????????????????????? | | ??????????????????????????????????????????? | | ??????????????????????????????????????????? | | ??????????????????????????????????????????? | | ??????????????????????????????????????????? | | ??????????????????????????????????????????? | | ??????????????????????????????????????????? | | ??????????????????????????????????????????? | | ??????????????????????????????????????????? | | ??????????????????????????????????????????? | | ??????????????????????????????????????????? | | ??????????????????????????????????????????? | | ????????????????????????? ??????????????? | | ??????# ???##??????????? ?????????????? | | ??????# ### ??????????? ?????????????? | | ??????? s ?????????? ??????????????? | | ???????? ???????? ??????????????? | | ?????????? s ????????# #??????????????? | | ???????????# ???????# #??????????????? | | ????????????# ######?# #??????????????? | | ????????????# ;;;;;### #??????????????? | | ????????????+ ;k ;# #??????????????? | | ????????????# ;r ;# #??????????????? | | ????????????# r%@ ;# ##?????????????? | | ????????????# ; ;s #?????????????? | | ????????????# ; # a #?????????????? | | ????????????# ; g uu + ???????????? | | ????????????# ; # # ??????????? | | ????????????# ; ! # #?? ??????????? | | ????????????# ; ;# ##?????????????? | | ????????????# m# ## #??????????????? | | ????????????# #*** ## #?#############? | | ????????????# #** ## ### #? | | ????????????# ######## + #? | | ???????????? ? ### #? | | ???????????? ######## #?# #? | | ??????????? ????????#####?# #? | | ?????????????????????????????# #? | | ?????????????????????????????# #? | | ?????????????????????????????######/####+#? | | ?????????????????????????????????# T #? | | ?????????????????????????????????# #? | | ?????????????????????????????????+ #? | | ?????????????????????????????????#^* #? | | ?????????????????????????????????#[=[ ## | | ?????????????????????????????????#=** # | | ?????????????????????????????????#= # | | ?????????????????????????????????# # | +----------------------------------------------------+ Best States ------------- Heat Dissipation 25 Energy Generation 10 Energy Capacity 250 Matter Stores 285 Matter Capacity 300 Sight Range 16 Terrain Scan Density 10 Evasion (%) 55 Item Schematics ----------------- None Robot Schematics ------------------ None Fabricated ------------ Nothing Alien Tech Used ----------------- None Achievements -------------- None Challenges ------------ None Game ------ Seed CombatImprinterCanceller Manual? 0 Play Time 00:05:11 Cumulative 3.0 hours Start 2023.10.29 @ 13:48:11 End 2023.10.29 @ 13:51:21 Sessions 1 Manual Loads 0 Difficulty Rogue Special Mode None Game No. 12 Rogue 12 Adventurer 0 Explorer 0 Win Type - Total 0 Types 0/0/0/0/0/0/0/0/0 Lore% 6 Gallery% 8 Achievement% 6 Wizard Run 0 Options --------- ASCII 0 Keyboard 1 Movement Arrows Keybinds 0 Fullscreen 1 Font 18/Terminus Map View 76x50 Tactical HUD 1 Map Filters NONE Filters NONE Steam 1 RUN: 01855d0b-d728-4d2b-9537-7a828aeff4dc